bitfinex/quotes_BTCUSD_20250428
["timestamp","ask_amount","ask_price","bid_price","bid_amount"]
[1745858659751,0.0003889,94094.0,94093.0,0.95101248]
[1745858663560,0.0003889,94094.0,94093.0,0.90101248]
[1745858663790,0.0003889,94094.0,94093.0,0.95101248]
[1745858666604,0.000424,94114.0,94093.0,0.95101248]
[1745858666605,0.000424,94114.0,94098.0,0.37168521]
[1745858666803,0.000424,94114.0,94098.0,0.47857535]
[1745858667733,0.000424,94114.0,94110.0,0.26251726]
[1745858667946,0.000424,94114.0,94110.0,0.84069408]
[1745858668923,0.000424,94114.0,94110.0,0.84469408]
[1745858674191,0.000424,94114.0,94110.0,0.89389408]
[1745858674998,0.000424,94114.0,94110.0,0.88989408]
[1745858675489,0.000424,94114.0,94110.0,0.84069408]
[1745858676345,0.000424,94114.0,94110.0,0.84469408]
[1745858679046,0.000424,94114.0,94110.0,0.88773323]
[1745858679570,0.000424,94114.0,94110.0,0.90227408]
[1745858686800,0.000424,94114.0,94110.0,0.79879408]
[1745858686999,0.000424,94114.0,94110.0,0.90207408]
[1745858688736,0.000424,94114.0,94110.0,0.85207408]
[1745858689675,0.01039512,94113.0,94110.0,0.85207408]
[1745858690246,0.000424,94114.0,94110.0,0.85207408]
[1745858690664,0.000424,94114.0,94110.0,0.68955682]
[1745858690994,0.000424,94114.0,94110.0,0.90207408]
[1745858691415,0.000424,94114.0,94110.0,0.85207408]
[1745858691819,0.000424,94114.0,94110.0,0.90207408]
[1745858692348,0.000424,94114.0,94110.0,0.85207408]
[1745858692870,0.000424,94114.0,94110.0,0.90207408]
[1745858694603,0.000424,94114.0,94110.0,0.91207408]
[1745858694986,0.000424,94114.0,94110.0,0.50122825]
[1745858696417,0.000424,94114.0,94110.0,0.55072825]
[1745858697906,0.000424,94114.0,94110.0,0.44744825]
[1745858698088,0.000424,94114.0,94110.0,0.55072825]
[1745858700699,0.000424,94114.0,94110.0,0.96157408]
[1745858701864,0.000424,94114.0,94110.0,0.85829408]
[1745858702041,0.000424,94114.0,94110.0,0.89753323]
[1745858702813,0.000424,94114.0,94110.0,0.91207408]
[1745858703414,0.000424,94114.0,94110.0,0.80879408]
[1745858703730,0.000424,94114.0,94110.0,0.54627682]
[1745858703916,0.000424,94114.0,94110.0,0.91207408]
[1745858704964,0.003364,94119.0,94115.0,0.01454085]
[1745858705117,0.003364,94119.0,94117.0,0.01454085]
[1745858705317,0.003364,94119.0,94118.0,0.12143099]
[1745858706991,0.003364,94119.0,94118.0,0.12343099]
[1745858708328,0.05127088,94119.0,94118.0,0.21217014]
[1745858708491,0.05651394,94119.0,94118.0,0.21217014]
[1745858708808,0.05651394,94119.0,94118.0,0.10889014]
[1745858709014,0.44301394,94119.0,94118.0,0.10689014]
[1745858709374,0.44301394,94119.0,94118.0,0.10789014]
[1745858709798,0.4345,94118.0,94110.0,0.01]
[1745858709964,0.0945,94115.0,94110.0,0.11689014]
[1745858710160,0.0051318,94117.0,94110.0,0.11689014]
[1745858710400,0.0945,94116.0,94110.0,0.11689014]
[1745858710598,0.0937,94116.0,94110.0,0.11689014]
[1745858710845,0.0937,94116.0,94110.0,0.01]
[1745858710846,0.005111,94115.0,94110.0,0.01]
[1745858711042,0.0937,94113.0,94110.0,0.01]
[1745858711243,0.00184878,94114.0,94110.0,0.01]
[1745858711418,0.0937,94111.0,94110.0,0.01]
[1745858711623,0.09554878,94111.0,94110.0,0.01]
[1745858711803,0.43874758,94111.0,94110.0,0.01]
[1745858715190,0.09374758,94111.0,94110.0,0.01]
[1745858715897,0.43374758,94111.0,94110.0,0.01]
[1745858716260,0.67974658,94111.0,94110.0,0.01]
[1745858716461,0.34,94110.0,94102.0,0.11328]
[1745858716660,0.00491781,94109.0,94102.0,0.01]
[1745858716919,0.34,94107.0,94102.0,0.01]
[1745858717299,0.34,94105.0,94102.0,0.01]
[1745858717925,0.00491781,94104.0,94102.0,0.01]
[1745858718553,0.34,94109.0,94102.0,0.01]
[1745858718754,0.00491781,94108.0,94102.0,0.01]
[1745858718907,0.34,94107.0,94102.0,0.01]
[1745858719111,0.0951,94106.0,94102.0,0.01]
[1745858719343,0.00491385,94105.0,94102.0,0.01]
[1745858719553,0.00491385,94105.0,94102.0,0.001]
[1745858720870,0.00491385,94105.0,94095.0,0.11308]
[1745858721072,0.33426747,94105.0,94095.0,0.11308]
[1745858721841,0.33426747,94105.0,94095.0,0.01]
[1745858722386,0.34184878,94104.0,94095.0,0.01]
[1745858722638,1.656799,94103.0,94095.0,0.01]
[1745858722811,0.4353,94101.0,94095.0,0.01]
[1745858723012,0.34,94099.0,94095.0,0.01]
[1745858723217,0.34,94097.0,94095.0,0.01]
[1745858723424,1.13362378,94096.0,94095.0,0.01]
[1745858723623,1.1541656,94096.0,94095.0,0.01]
[1745858724616,1.26105574,94096.0,94095.0,0.01]
[1745858724818,1.26205574,94096.0,94095.0,0.01]
[1745858725068,1.1551656,94096.0,94095.0,0.01]
[1745858725458,1.1541656,94096.0,94095.0,0.01]
[1745858725656,1.1551656,94096.0,94095.0,0.01]
[1745858725858,0.34,94095.0,94086.0,0.01]
[1745858726096,0.34,94093.0,94086.0,0.01]
[1745858726253,0.34,94091.0,94086.0,0.01]
[1745858726460,0.34,94089.0,94086.0,0.01]
[1745858726671,0.34,94087.0,94086.0,0.01]
[1745858726874,0.643015,94087.0,94086.0,0.01]
[1745858727076,0.64765946,94087.0,94086.0,0.01]
[1745858728458,0.64765946,94087.0,94075.0,0.11312]
[1745858728662,0.32935362,94085.0,94076.0,0.10689014]
[1745858728920,0.34,94083.0,94076.0,0.10689014]
[1745858729309,0.00468013,94082.0,94076.0,0.10689014]
[1745858731254,0.00468013,94082.0,94076.0,0.10789014]
[1745858732179,0.01063593,94083.0,94076.0,0.10789014]
[1745858732423,0.00468013,94082.0,94076.0,0.10789014]
[1745858732895,0.34,94085.0,94076.0,0.10789014]
[1745858733056,0.00468013,94081.0,94076.0,0.10789014]
[1745858733447,0.00468013,94080.0,94076.0,0.10689014]
[1745858733645,0.00468013,94080.0,94076.0,0.10789014]
[1745858733872,0.35052524,94083.0,94076.0,0.10689014]
[1745858734187,0.01052524,94083.0,94076.0,0.10889014]
[1745858734381,0.00468013,94082.0,94076.0,0.10889014]
[1745858734877,0.00468013,94082.0,94076.0,0.10689014]
[1745858735087,0.01077361,94083.0,94076.0,0.10689014]
[1745858735245,0.00460496,94081.0,94076.0,0.10689014]
[1745858735471,0.32935362,94086.0,94076.0,0.10689014]
[1745858735657,0.00460496,94080.0,94076.0,0.10689014]
[1745858735929,0.0104986,94083.0,94076.0,0.10789014]
[1745858736143,0.00460496,94079.0,94076.0,0.10789014]
[1745858736358,0.34,94085.0,94076.0,0.10789014]
[1745858736514,0.34,94083.0,94076.0,0.10689014]
[1745858736670,0.00460496,94082.0,94076.0,0.10689014]
[1745858737574,0.00460496,94082.0,94076.0,0.10789014]
[1745858737908,0.00460496,94082.0,94076.0,0.10689014]
[1745858739264,0.00460496,94082.0,94076.0,0.10789014]
[1745858741633,0.00460496,94082.0,94079.0,0.01454085]
[1745858741779,0.00460496,94082.0,94080.0,0.10689014]
[1745858741985,0.34,94089.0,94080.0,0.10689014]
[1745858742170,0.00449508,94088.0,94080.0,0.10689014]
[1745858742363,0.34,94089.0,94080.0,0.10689014]
[1745858742566,0.00449508,94088.0,94080.0,0.10689014]
[1745858742768,0.00449508,94088.0,94080.0,0.10789014]
[1745858742968,0.01525271,94088.0,94080.0,0.10789014]
[1745858743188,0.00449508,94088.0,94080.0,0.10789014]
[1745858743392,0.00449508,94088.0,94080.0,0.10689014]
[1745858745417,0.01521007,94088.0,94080.0,0.10689014]
[1745858745983,0.01521007,94088.0,94080.0,0.32147291]
[1745858746210,0.01521007,94088.0,94087.0,0.22711006]
[1745858746411,0.01521007,94088.0,94087.0,0.3801002]
[1745858746615,0.01071499,94088.0,94087.0,0.3801002]
[1745858746894,0.34,94099.0,94091.0,0.21255936]
[1745858747094,0.00453074,94098.0,94092.0,0.10689014]
[1745858747991,0.01535647,94098.0,94092.0,0.10689014]
[1745858749078,0.01082573,94098.0,94092.0,0.10689014]
[1745858749245,0.00452677,94097.0,94092.0,0.10689014]
[1745858749657,0.00452677,94097.0,94092.0,0.10789014]
[1745858749860,0.00010868,94208.0,94097.0,0.06424085]
[1745858749861,0.0491,94115.0,94097.0,0.06424085]
[1745858750024,0.32935362,94120.0,94104.0,0.21252937]
[1745858750417,0.32935362,94120.0,94099.0,0.05]
[1745858750418,0.34427088,94119.0,94105.0,0.10689014]
[1745858750589,0.32935362,94114.0,94105.0,0.10689014]
[1745858750806,0.34,94113.0,94105.0,0.10689014]
[1745858751008,0.33983828,94114.0,94105.0,0.10689014]
[1745858751349,0.34,94113.0,94105.0,0.10689014]
[1745858752826,0.341,94113.0,94105.0,0.10689014]
[1745858753231,0.34,94113.0,94105.0,0.10689014]
[1745858753632,0.341,94113.0,94105.0,0.10689014]
[1745858754428,0.001,94113.0,94110.0,0.01062586]
[1745858754631,0.001,94113.0,94112.0,0.2270536]
[1745858754799,0.00427088,94119.0,94115.0,0.21250568]
[1745858755002,0.00427088,94119.0,94116.0,0.10689014]
[1745858755178,0.00327088,94119.0,94116.0,0.10689014]
[1745858755391,0.00327088,94119.0,94116.0,0.31939385]
[1745858756431,0.00327088,94119.0,94117.0,0.315421]
[1745858756766,0.01409874,94119.0,94118.0,0.10689014]
[1745858756965,0.00327088,94119.0,94118.0,0.10689014]
[1745858758200,0.01369913,94119.0,94118.0,0.10889014]
[1745858758361,0.00327088,94119.0,94118.0,0.10889014]
[1745858760292,0.0139325,94119.0,94118.0,0.10889014]
[1745858763745,0.0139325,94119.0,94118.0,0.32138934]
[1745858764030,0.0139325,94119.0,94118.0,0.10889014]
[1745858769851,0.0139325,94119.0,94118.0,0.21181014]
[1745858771836,0.0139325,94119.0,94118.0,0.28009301]
[1745858772038,0.0139325,94119.0,94118.0,0.50713306]
[1745858772291,0.0139325,94119.0,94118.0,0.43885019]
[1745858774185,0.0139325,94119.0,94118.0,0.21181014]
[1745858774611,0.1446925,94119.0,94118.0,0.10492]
[1745858774758,0.74223219,94119.0,94118.0,0.10492]
[1745858774955,0.68999719,94119.0,94118.0,0.10492]
[1745858775452,0.50513919,94119.0,94118.0,0.10492]
[1745858775661,0.35841119,94119.0,94118.0,0.10292]
[1745858775860,0.35841119,94119.0,94118.0,0.26600214]
[1745858776069,0.35841119,94119.0,94118.0,0.25551014]
[1745858776455,0.35841119,94119.0,94118.0,0.46800934]
[1745858776628,0.3539325,94119.0,94118.0,0.25551014]
[1745858776837,0.3593494,94119.0,94118.0,0.25551014]
[1745858777352,0.3583494,94119.0,94118.0,0.25551014]
[1745858777553,0.3583494,94119.0,94118.0,0.25751014]
[1745858777757,0.3539325,94119.0,94118.0,0.25751014]
[1745858777960,0.3583494,94119.0,94118.0,0.25751014]
[1745858782983,0.3583494,94119.0,94118.0,0.21181014]
[1745858783196,0.3539325,94119.0,94118.0,0.21181014]
[1745858783399,0.35837256,94119.0,94118.0,0.002]
[1745858783600,0.6239757,94119.0,94118.0,0.002]
[1745858784339,0.34,94118.0,94104.0,0.10272]
[1745858784564,0.21623959,94114.0,94104.0,0.10272]
[1745858784774,0.34,94112.0,94104.0,0.10272]
[1745858785127,0.00444795,94111.0,94104.0,0.10272]
[1745858786170,0.34,94113.0,94104.0,0.10272]
[1745858786376,0.34,94111.0,94104.0,0.10272]
[1745858786601,0.00436599,94110.0,94104.0,0.10272]
[1745858786770,0.34,94113.0,94104.0,0.10272]
[1745858786975,0.30680299,94112.0,94104.0,0.10472]
[1745858787183,0.00436599,94112.0,94104.0,0.10472]
[1745858787662,0.00436599,94112.0,94104.0,0.10272]
[1745858787861,0.00436599,94112.0,94104.0,0.10372]
[1745858788266,0.123316,94111.0,94104.0,0.10372]
[1745858788801,0.00436599,94110.0,94104.0,0.10372]
[1745858789124,0.32965849,94114.0,94104.0,0.10372]
[1745858789297,0.00436599,94109.0,94104.0,0.10372]
[1745858789433,0.34,94113.0,94104.0,0.10272]
[1745858789646,0.34,94111.0,94104.0,0.10272]
[1745858789875,0.34,94111.0,94104.0,0.10372]
[1745858790326,0.00436599,94110.0,94104.0,0.10272]
[1745858790540,0.00436599,94110.0,94104.0,0.10372]
[1745858791058,0.34,94113.0,94104.0,0.10272]
[1745858791229,0.00432628,94109.0,94104.0,0.10272]
[1745858791411,0.34,94113.0,94104.0,0.10472]
[1745858791604,0.00432628,94112.0,94104.0,0.10472]
[1745858792378,0.00432628,94112.0,94105.0,0.0457]
[1745858793144,0.00432628,94112.0,94104.0,0.10272]
[1745858793357,0.00432628,94112.0,94104.0,0.10472]
[1745858794421,0.00432628,94112.0,94104.0,0.002]
[1745858794569,0.00432628,94112.0,94105.0,0.10272]
[1745858796195,0.00432628,94112.0,94105.0,0.10372]
[1745858796595,0.299447,94111.0,94105.0,0.10372]
[1745858796791,0.00616444,94110.0,94105.0,0.10372]
[1745858797195,0.34,94108.0,94105.0,0.10372]
[1745858797496,0.34,94106.0,94105.0,0.10272]
[1745858797665,1.036104,94106.0,94105.0,0.10272]
[1745858797867,0.63747462,94106.0,94105.0,0.10472]
[1745858798598,0.47235162,94106.0,94105.0,0.10472]
[1745858799677,0.00431962,94106.0,94105.0,0.10272]
[1745858800087,0.34,94114.0,94105.0,0.10272]
[1745858800288,0.34,94112.0,94105.0,0.10272]
[1745858800504,0.34,94110.0,94105.0,0.10272]
[1745858800651,0.34,94108.0,94092.0,0.0481]
[1745858800851,0.34,94108.0,94093.0,0.20961014]
[1745858801046,0.00431959,94107.0,94093.0,0.20961014]
[1745858802077,0.34,94102.0,94093.0,0.20961014]
[1745858802424,0.00431563,94101.0,94093.0,0.20961014]
[1745858803871,0.00431563,94101.0,94093.0,0.21161014]
[1745858806067,0.00431563,94101.0,94093.0,0.24364401]
[1745858806507,0.00431563,94101.0,94093.0,0.21161014]
[1745858807307,0.34,94102.0,94093.0,0.21161014]
[1745858807907,0.00430053,94101.0,94093.0,0.21161014]
[1745858808975,0.00430053,94101.0,94093.0,0.20961014]
[1745858809180,0.00430053,94101.0,94093.0,0.21061014]
[1745858809534,0.00430053,94101.0,94093.0,0.20961014]
[1745858809942,0.00430053,94101.0,94093.0,0.21161014]
[1745858812654,0.81780899,94100.0,94093.0,0.002]
[1745858812847,0.34,94098.0,94093.0,0.002]
[1745858813052,0.34,94096.0,94093.0,0.002]
[1745858813252,0.00417746,94095.0,94093.0,0.002]
[1745858813739,0.00184878,94094.0,94093.0,0.002]
[1745858813893,0.00184878,94094.0,94082.0,0.10256]
[1745858814088,0.34,94091.0,94083.0,0.10689014]
[1745858814287,0.34,94091.0,94082.0,0.10256]
[1745858814495,0.0041814,94090.0,94082.0,0.10256]
[1745858815428,0.0041814,94090.0,94083.0,0.10689014]
[1745858816722,0.0041814,94090.0,94084.0,0.01454085]
[1745858816883,0.0041814,94090.0,94085.0,0.19717009]
[1745858817091,0.34,94099.0,94085.0,0.17023099]
[1745858817532,0.32975304,94095.0,94085.0,0.17023099]
[1745858817823,0.00403571,94094.0,94085.0,0.17023099]
[1745858819277,0.00403571,94094.0,94087.0,0.01454085]
[1745858819481,0.00503571,94094.0,94088.0,0.10689014]
[1745858820075,0.00403571,94094.0,94088.0,0.10689014]
[1745858821497,0.00503571,94094.0,94088.0,0.10689014]
[1745858821905,0.00403571,94094.0,94088.0,0.10689014]
[1745858822243,0.00403571,94094.0,94073.0,0.0008482]
[1745858822244,0.34,94092.0,94073.0,0.0008482]
[1745858822451,0.32975304,94083.0,94080.0,5.813e-05]
[1745858822652,0.99329532,94082.0,94080.0,5.813e-05]
[1745858822801,1.76759954,94081.0,94080.0,5.813e-05]
[1745858822988,1.38757854,94081.0,94080.0,5.813e-05]
[1745858823189,1.33542268,94081.0,94080.0,5.813e-05]
[1745858823391,1.19061468,94081.0,94080.0,5.813e-05]
[1745858823585,1.03987568,94081.0,94080.0,5.813e-05]
[1745858824089,0.70846654,94081.0,94080.0,5.813e-05]
[1745858824643,0.243977,94081.0,94080.0,5.813e-05]
[1745858824848,0.0529,94084.0,94080.0,5.813e-05]
[1745858824849,0.848929,94083.0,94080.0,5.813e-05]
[1745858825049,0.405062,94083.0,94080.0,5.813e-05]
[1745858825254,0.002,94081.0,94080.0,0.10694827]
[1745858825674,0.265892,94083.0,94080.0,0.10694827]
[1745858825878,0.138291,94083.0,94080.0,0.10694827]
[1745858826078,0.394058,94082.0,94080.0,0.10694827]
[1745858826325,0.185361,94082.0,94080.0,0.10694827]
[1745858826557,0.134861,94082.0,94080.0,0.10694827]
[1745858826678,0.10386,94082.0,94080.0,0.10694827]
[1745858827537,0.32975304,94090.0,94080.0,0.10694827]
[1745858827538,0.654111,94089.0,94080.0,0.10694827]
[1745858828052,0.002,94081.0,94080.0,0.10694827]
[1745858828274,0.134265,94081.0,94080.0,0.10694827]
[1745858828553,0.130426,94081.0,94080.0,0.10694827]
[1745858828957,0.128426,94081.0,94080.0,0.10694827]
[1745858829262,0.499489,94088.0,94080.0,0.10694827]
[1745858829469,0.112842,94088.0,94080.0,0.10694827]
[1745858829667,1.335755,94088.0,94080.0,0.10694827]
[1745858829849,0.00184878,94087.0,94080.0,0.10694827]
[1745858830051,1.638475,94086.0,94080.0,0.10694827]
[1745858830451,1.765343,94088.0,94080.0,0.10694827]
[1745858830651,0.00184878,94085.0,94080.0,5.813e-05]
[1745858830832,0.002,94081.0,94080.0,5.813e-05]
[1745858831029,2.22131078,94081.0,94080.0,5.813e-05]
[1745858831235,2.046822,94081.0,94080.0,5.813e-05]
[1745858832270,2.048822,94081.0,94080.0,5.813e-05]
[1745858832694,1.146289,94081.0,94080.0,5.813e-05]
[1745858832899,1.557889,94081.0,94080.0,5.813e-05]
[1745858833956,1.152994,94081.0,94080.0,5.813e-05]
[1745858834167,0.828382,94081.0,94080.0,5.813e-05]
[1745858834630,0.9112202,94081.0,94080.0,5.813e-05]
[1745858835448,0.828382,94081.0,94080.0,5.813e-05]
[1745858838245,0.4136,94081.0,94080.0,5.813e-05]
[1745858838445,2.494381,94081.0,94080.0,5.813e-05]
[1745858838684,2.395904,94081.0,94080.0,5.813e-05]
[1745858839127,2.374951,94081.0,94080.0,5.813e-05]
[1745858839487,2.48184114,94081.0,94058.0,0.0488]
[1745858839689,0.32975304,94071.0,94059.0,0.10689014]
[1745858839911,0.731268,94070.0,94059.0,0.10689014]
[1745858840926,0.74167305,94070.0,94059.0,0.10689014]
[1745858841329,0.635225,94069.0,94061.0,0.04505615]
[1745858841685,0.635225,94069.0,94062.0,0.10689014]
[1745858841890,2.37388722,94070.0,94062.0,0.10689014]
[1745858842097,2.304041,94068.0,94062.0,0.10689014]
[1745858842252,0.880948,94067.0,94062.0,0.10689014]
[1745858842439,2.40405,94070.0,94062.0,0.10689014]
[1745858842816,2.41561943,94070.0,94062.0,0.10689014]
[1745858843027,2.290192,94069.0,94062.0,0.10689014]
[1745858843888,2.290192,94069.0,94062.0,0.10789014]
[1745858844386,0.34,94068.0,94062.0,0.10689014]
[1745858844602,0.34,94066.0,94062.0,0.10789014]
[1745858844800,0.34,94064.0,94062.0,0.10789014]
[1745858845012,0.37847278,94064.0,94062.0,0.001]
[1745858845223,0.8611759,94063.0,94062.0,0.001]
[1745858845442,0.85932712,94063.0,94062.0,0.001]
[1745858845790,0.34,94062.0,94058.0,5.814e-05]
[1745858845992,0.00184878,94061.0,94058.0,5.814e-05]
[1745858846240,0.34,94059.0,94058.0,5.814e-05]
[1745858846413,0.726536,94059.0,94058.0,5.814e-05]
[1745858846683,0.74844612,94059.0,94058.0,5.814e-05]
[1745858846857,0.72753512,94059.0,94058.0,5.814e-05]
[1745858847057,0.69794612,94059.0,94058.0,5.814e-05]
[1745858847444,0.77852975,94059.0,94058.0,5.814e-05]
[1745858849642,0.7818554,94059.0,94058.0,5.814e-05]
[1745858849850,0.70127177,94059.0,94058.0,5.814e-05]
[1745858853242,0.65293577,94059.0,94058.0,5.814e-05]
[1745858853496,0.64252277,94059.0,94058.0,5.814e-05]
[1745858853687,0.55269177,94059.0,94058.0,0.15424828]
[1745858854547,0.55269177,94059.0,94058.0,0.04735814]
[1745858856114,0.36320777,94059.0,94058.0,0.15424828]
[1745858856338,0.02320777,94059.0,94058.0,0.19930443]
[1745858856539,0.02320777,94059.0,94058.0,0.20030443]
[1745858857836,0.02320777,94059.0,94058.0,0.21484528]
[1745858858043,0.02320777,94059.0,94058.0,0.21384528]
[1745858858249,0.02320777,94059.0,94058.0,0.21484528]
[1745858858450,0.01988212,94059.0,94058.0,0.21484528]
[1745858858854,0.01988212,94059.0,94058.0,0.21384528]
[1745858859040,0.01988212,94059.0,94058.0,0.21584528]
[1745858859641,0.01988212,94059.0,94058.0,0.21384528]
[1745858859758,0.01988212,94059.0,94058.0,0.09595147]
[1745858859965,0.01988212,94059.0,94058.0,0.09795147]
[1745858862288,0.01988212,94059.0,94058.0,0.03835447]
[1745858862443,0.01988212,94059.0,94058.0,0.002]
[1745858862650,0.53884212,94059.0,94058.0,0.002]
[1745858862860,0.56552433,94059.0,94058.0,0.002]
[1745858863204,0.48297433,94059.0,94058.0,0.002]
[1745858864226,0.34,94058.0,94057.0,0.0008482]
[1745858864417,0.745577,94058.0,94057.0,0.0008482]
[1745858864920,0.76545912,94058.0,94057.0,0.0008482]
[1745858865839,0.48289212,94058.0,94057.0,0.0008482]
[1745858865985,0.48289212,94058.0,94057.0,0.0018482]
[1745858867286,0.48289212,94058.0,94057.0,0.0008482]
[1745858867900,0.48289212,94058.0,94057.0,0.0018482]
[1745858868297,0.48289212,94058.0,94057.0,0.0008482]
[1745858868746,0.53118133,94058.0,94057.0,0.0018482]
[1745858869591,0.48289212,94058.0,94057.0,0.0018482]
[1745858869794,0.01988212,94058.0,94057.0,0.0018482]
[1745858870570,0.01988212,94058.0,94057.0,0.0008482]
[1745858870743,0.02420749,94058.0,94057.0,0.0008482]
[1745858871155,0.02320749,94058.0,94057.0,0.0008482]
[1745858871555,0.02320749,94058.0,94057.0,0.0018482]
[1745858877468,0.06940749,94058.0,94057.0,0.0018482]
[1745858877668,0.06940749,94058.0,94055.0,0.0008478]
[1745858877669,0.34,94057.0,94055.0,0.0008478]
[1745858878045,0.08462055,94056.0,94047.0,0.1014318]
[1745858878270,1.53096777,94055.0,94047.0,0.00012113]
[1745858878502,0.34,94053.0,94047.0,0.00012113]
[1745858878731,0.34,94051.0,94047.0,0.00012113]
[1745858878923,0.34,94049.0,94047.0,0.00012113]
[1745858879055,1.417165,94048.0,94047.0,0.00012113]
[1745858879257,1.31159577,94048.0,94047.0,0.00012113]
[1745858879461,1.26494477,94048.0,94047.0,0.00012113]
[1745858879658,1.28815226,94048.0,94047.0,0.00012113]
[1745858880498,1.03813026,94048.0,94047.0,0.00012113]
[1745858880673,1.1450204,94048.0,94047.0,0.00012113]
[1745858880879,1.03813026,94048.0,94047.0,0.00012113]
[1745858881304,1.01025849,94048.0,94047.0,0.00012113]
[1745858882794,1.42185849,94048.0,94047.0,0.00012113]
[1745858887262,1.36696749,94048.0,94047.0,0.00012113]
[1745858887532,1.09969349,94048.0,94047.0,0.00012113]
[1745858887729,0.77680749,94048.0,94047.0,0.00012113]
[1745858888598,0.36520749,94048.0,94047.0,0.00012113]
[1745858889264,0.36320749,94048.0,94047.0,0.00012113]
[1745858889423,0.36420749,94048.0,94047.0,0.00012113]
[1745858890040,0.36320749,94048.0,94047.0,0.00012113]
[1745858891619,0.39952824,94048.0,94047.0,0.00012113]
[1745858893252,0.36320749,94048.0,94047.0,0.00012113]
[1745858894692,0.35988212,94048.0,94047.0,0.00012113]
[1745858897077,0.34,94047.0,94041.0,0.04289765]
[1745858897470,0.01988212,94046.0,94041.0,0.04289765]
[1745858898081,0.01988212,94045.0,94041.0,0.04289765]
[1745858898432,0.05149679,94045.0,94035.0,0.04289765]
[1745858898637,0.01988212,94044.0,94041.0,0.04289765]
[1745858899224,0.01988212,94044.0,94041.0,0.04389765]
[1745858899501,0.01988212,94043.0,94041.0,0.04389765]
[1745858899914,0.01988212,94043.0,94041.0,0.04289765]
[1745858900030,0.01988212,94042.0,94041.0,0.04389765]
[1745858901644,0.01988212,94042.0,94041.0,0.04289765]
[1745858902068,0.01988212,94042.0,94041.0,0.04389765]
[1745858902451,0.01988212,94042.0,94041.0,0.04289765]
[1745858902785,0.01988212,94042.0,94041.0,0.04389765]
[1745858905084,0.01988212,94042.0,94041.0,0.001]
[1745858908692,0.01988212,94042.0,94040.0,0.04289765]
[1745858909143,0.01988212,94041.0,94040.0,0.04289765]
[1745858909943,0.01988212,94041.0,94040.0,0.04389765]
[1745858910339,0.01988212,94041.0,94040.0,0.04289765]
[1745858910788,0.01988212,94041.0,94040.0,0.04389765]
[1745858915430,0.01988212,94041.0,94040.0,0.001]
[1745858915632,0.0217309,94041.0,94040.0,0.001]
[1745858916064,0.01988212,94041.0,94040.0,0.001]
[1745858916463,0.21988212,94041.0,94031.0,0.04689765]
[1745858916822,0.01988212,94040.0,94031.0,0.04689765]
[1745858917429,0.01988212,94039.0,94031.0,0.04689765]
[1745858917842,0.07597033,94039.0,94031.0,0.04689765]
[1745858918179,0.01988212,94039.0,94031.0,0.04689765]
[1745858918409,0.35988212,94039.0,94031.0,0.04689765]
[1745858918951,0.35988212,94039.0,94031.0,0.004]
[1745858919154,0.35988212,94039.0,94031.0,0.04689765]
[1745858920167,0.35988212,94039.0,94031.0,0.004]
[1745858920388,0.55988212,94039.0,94031.0,0.004]
[1745858920729,0.96312312,94039.0,94031.0,0.004]
[1745858920890,1.05943543,94039.0,94031.0,0.04689765]
[1745858921062,0.65619443,94039.0,94031.0,0.04689765]
[1745858921405,0.55988212,94039.0,94031.0,0.004]
[1745858921612,0.56320826,94039.0,94031.0,0.04689765]
[1745858927454,0.56320826,94039.0,94031.0,0.004]
[1745858927832,1.04188326,94039.0,94031.0,0.04689765]
[1745858928216,1.04188326,94039.0,94031.0,0.004]
[1745858928619,1.04188326,94039.0,94031.0,0.04689765]
[1745858929043,1.04188326,94039.0,94031.0,0.004]
[1745858929440,0.97334326,94039.0,94031.0,0.004]
[1745858929795,0.84664026,94039.0,94031.0,0.004]
[1745858929998,0.84664026,94039.0,94031.0,0.04689765]
[1745858930207,0.84664026,94039.0,94031.0,0.004]
[1745858930819,0.83226126,94039.0,94031.0,0.04689765]
[1745858930976,0.80572226,94039.0,94031.0,0.04689765]
[1745858931182,0.78971826,94039.0,94031.0,0.04689765]
[1745858931367,0.74919826,94039.0,94031.0,0.04689765]
[1745858931567,0.56320826,94039.0,94031.0,0.04689765]
[1745858931787,0.67247126,94039.0,94031.0,0.04689765]
[1745858931986,0.56320826,94039.0,94031.0,0.04689765]
[1745858933162,0.56320826,94039.0,94035.0,0.0475]
[1745858933462,0.56320826,94039.0,94032.0,0.04289765]
[1745858933463,0.35988212,94039.0,94032.0,0.04289765]
[1745858936344,0.01988212,94039.0,94032.0,0.04289765]
[1745858942870,0.01988212,94039.0,94038.0,0.20033599]
[1745858944686,0.01988212,94039.0,94038.0,0.0008482]
[1745858945358,0.21988212,94039.0,94038.0,0.0008482]
[1745858945676,0.58695521,94039.0,94038.0,0.0008482]
[1745858946229,0.55988212,94039.0,94038.0,0.0008482]
[1745858946427,0.56320818,94039.0,94038.0,0.0008482]
[1745858949847,0.55988212,94039.0,94038.0,0.0008482]
[1745858951394,1.00139639,94039.0,94038.0,0.0008482]
[1745858951594,1.04649639,94039.0,94038.0,0.0008482]
[1745858951795,1.1446033,94039.0,94038.0,0.0008482]
[1745858951943,2.1292863,94039.0,94038.0,0.0008482]
[1745858952353,2.03117939,94039.0,94038.0,0.0008482]
[1745858952561,1.67297039,94039.0,94038.0,0.0008482]
[1745858952891,1.62237539,94039.0,94038.0,0.0008482]
[1745858953063,1.62537539,94039.0,94038.0,0.0008482]
[1745858953281,1.53685439,94039.0,94038.0,0.0008482]
[1745858953638,1.61925153,94039.0,94038.0,0.0008482]
[1745858954077,1.62225153,94039.0,94038.0,0.0008482]
[1745858954479,1.61925153,94039.0,94038.0,0.0008482]
[1745858954674,1.62125153,94039.0,94038.0,0.0008482]
[1745858954886,1.35130539,94039.0,94038.0,0.0008482]
[1745858958036,1.30620539,94039.0,94038.0,0.0008482]
[1745858959428,2.20181039,94039.0,94038.0,0.0008482]
[1745858959641,2.11767539,94039.0,94038.0,0.0008482]
[1745858959862,2.12100188,94039.0,94038.0,0.0008482]
[1745858960123,2.22789202,94039.0,94038.0,0.0008482]
[1745858961222,1.99005302,94039.0,94038.0,0.0008482]
[1745858961378,1.97470602,94039.0,94038.0,0.0008482]
[1745858962105,1.85238602,94039.0,94038.0,0.0008482]
[1745858962671,1.64384588,94039.0,94038.0,0.0008482]
[1745858963272,1.64051939,94039.0,94038.0,0.0008482]
[1745858968041,1.64384601,94039.0,94038.0,0.0008482]
[1745858968291,0.34,94038.0,94021.0,0.000848]
[1745858968450,0.0458,94035.0,94021.0,0.000848]
[1745858968649,0.34,94033.0,94021.0,0.000848]